fUST/lending_fUST_20240722
["ID","MTS","AMOUNT","RATE_DAILY","PERIOD"]
[332884470,1721627440259,-500.0,0.00013698,2]
[332884471,1721627440268,-500.0,0.00013698,2]
[332884472,1721627440278,-500.0,0.00013698,2]
[332884473,1721627440287,-566.88517477,0.00013698,2]
[332884474,1721627440298,-461.94701501,0.00013698,2]
[332884476,1721627440308,-500.0,0.00013698,2]
[332884477,1721627440318,-502.71172316,0.00013698,2]
[332884479,1721627440328,-487.8921371,0.00013698,2]
[332884480,1721627440338,-500.0,0.00013698,2]
[332884481,1721627440347,-503.80197866,0.00013698,2]
[332884482,1721627440357,-500.0,0.00013698,2]
[332884483,1721627440366,-502.18907915,0.00013698,2]
[332884484,1721627440377,-500.0,0.00013698,2]
[332884485,1721627440386,-513.80969609,0.00013698,2]
[332884486,1721627440396,-500.57129976,0.00013698,2]
[332884487,1721627440408,-500.0,0.00013698,2]
[332884488,1721627440418,-501.16438225,0.00013698,2]
[332884489,1721627440428,-500.0,0.00013698,2]
[332884490,1721627440438,-508.14216732,0.00013698,2]
[332884491,1721627440450,-500.0,0.00013698,2]
[332884492,1721627440459,-260.7655311,0.00013698,2]
[332884493,1721627440469,-500.0,0.00013698,2]
[332884494,1721627440479,-500.0,0.00013698,2]
[332884495,1721627440490,-500.0,0.00013698,2]
[332884496,1721627440501,-201.96832673,0.00013698,2]
[332884497,1721627440511,-500.0,0.00013698,2]
[332884498,1721627440520,-500.0,0.00013698,2]
[332884499,1721627440530,-500.0,0.00013698,2]
[332884500,1721627440541,-214.25573509,0.00013698,2]
[332884501,1721627440552,-500.0,0.00013698,2]
[332884502,1721627440572,-500.0,0.00013698,2]
[332884503,1721627440585,-612.57565108,0.00013698,2]
[332884504,1721627440595,-169.30103475,0.00013698,2]
[332884505,1721627440605,-368.38938062,0.00013698,2]
[332884506,1721627440616,-500.88649305,0.00013698,2]
[332884507,1721627440627,-617.99000998,0.00013698,2]
[332884508,1721627440637,-504.75716021,0.00013698,2]
[332884509,1721627440648,-504.84380992,0.00013698,2]
[332884510,1721627440660,-500.0,0.00013698,2]
[332884511,1721627440671,-500.0,0.00013698,2]
[332884512,1721627440682,-500.0,0.00013698,2]
[332884513,1721627440693,-501.30523314,0.00013698,2]
[332884514,1721627440704,-503.82607562,0.00013698,2]
[332884515,1721627440714,-500.0,0.00013698,2]
[332884517,1721627440725,-500.0,0.00013698,2]
[332884518,1721627440736,-516.25954644,0.00013698,2]
[332884519,1721627440746,-501.89306793,0.00013698,2]
[332884520,1721627440756,-500.0,0.00013698,2]
[332884521,1721627440767,-500.0,0.00013698,2]
[332884523,1721627440778,-500.0,0.00013698,2]
[332884526,1721627440790,-486.94280647,0.00013698,2]
[332884528,1721627440800,-500.0,0.00013698,2]
[332884530,1721627440810,-500.0,0.00013698,2]
[332884532,1721627440820,-579.55,0.00013698,2]
[332884534,1721627440830,-500.0,0.00013698,2]
[332884536,1721627440841,-500.0,0.00013698,2]
[332884538,1721627440853,-500.0,0.00013698,2]
[332884540,1721627440866,-500.0,0.00013698,2]
[332884542,1721627440876,-500.0,0.00013698,2]
[332884545,1721627440887,-500.0,0.00013698,2]
[332884547,1721627440897,-500.0,0.00013698,2]
[332884549,1721627440912,-500.0,0.00013698,2]
[332884551,1721627440924,-500.0,0.00013698,2]
[332884553,1721627440934,-500.0,0.00013698,2]
[332884555,1721627440945,-500.0,0.00013698,2]
[332884558,1721627440955,-500.0,0.00013698,2]
[332884560,1721627440964,-500.0,0.00013698,2]
[332884562,1721627440974,-500.0,0.00013698,2]
[332884564,1721627440986,-500.0,0.00013698,2]
[332884566,1721627441000,-500.0,0.00013698,2]
[332884568,1721627441011,-500.0,0.00013698,2]
[332884570,1721627441021,-503.02447703,0.00013698,2]
[332884572,1721627441031,-500.0,0.00013698,2]
[332884574,1721627441041,-500.0,0.00013698,2]
[332884576,1721627441051,-500.0,0.00013698,2]
[332884579,1721627441062,-587.47,0.00013698,2]
[332884581,1721627441074,-504.996301,0.00013698,2]
[332884583,1721627441086,-528.36959764,0.00013698,2]
[332884585,1721627441095,-500.0,0.00013698,2]
[332884587,1721627441106,-500.0,0.00013698,2]
[332884589,1721627441116,-339.91633675,0.00013698,2]
[332884591,1721627441126,-500.0,0.00013698,2]
[332884593,1721627441137,-503.09669277,0.00013698,2]
[332884595,1721627441146,-500.0,0.00013698,2]
[332884597,1721627441158,-500.0,0.00013698,2]
[332884599,1721627441167,-500.0,0.00013698,2]
[332884602,1721627441178,-500.0,0.00013698,2]
[332884604,1721627441187,-500.0,0.00013698,2]
[332884606,1721627441198,-500.0,0.00013698,2]
[332884608,1721627441208,-500.0,0.00013698,2]
[332884610,1721627441218,-500.0,0.00013698,2]
[332884612,1721627441227,-500.0,0.00013698,2]
[332884614,1721627441236,-500.0,0.00013698,2]
[332884616,1721627441246,-513.89179109,0.00013698,2]
[332884618,1721627441255,-500.0,0.00013698,2]
[332884620,1721627441264,-500.0,0.00013698,2]
[332884622,1721627441274,-500.0,0.00013698,2]
[332884624,1721627441284,-500.0,0.00013698,2]
[332884626,1721627441293,-500.0,0.00013698,2]
[332884628,1721627441302,-500.0,0.00013698,2]
[332884630,1721627441312,-500.0,0.00013698,2]
[332884631,1721627441321,-300.0,0.00013698,2]
[332884633,1721627441331,-500.0,0.00013698,2]
[332884635,1721627441340,-500.0,0.00013698,2]
[332884637,1721627441350,-536.07823364,0.00013698,2]
[332884639,1721627441359,-500.0,0.00013698,2]
[332884641,1721627441369,-513.180343,0.00013698,2]
[332884642,1721627441378,-500.0,0.00013698,2]
[332884643,1721627441388,-500.0,0.00013698,2]
[332884644,1721627441401,-500.0,0.00013698,2]
[332884645,1721627441413,-500.0,0.00013698,2]
[332884646,1721627441422,-500.0,0.00013698,2]
[332884647,1721627441432,-500.0,0.00013698,2]
[332884648,1721627441441,-277.06716605,0.00013698,2]
[332884649,1721627441451,-500.0,0.00013698,2]
[332884650,1721627441460,-500.0,0.00013698,2]
[332884651,1721627441469,-598.8295479,0.00013698,2]
[332884652,1721627441478,-286.0,0.00013698,2]
[332884653,1721627441488,-501.20525823,0.00013698,2]
[332884654,1721627441498,-500.55675731,0.00013698,2]
[332884655,1721627441508,-500.0,0.00013698,2]
[332884657,1721627441518,-587.85,0.00013698,2]
[332884658,1721627441527,-501.28985794,0.00013698,2]
[332884660,1721627441536,-502.20272351,0.00013698,2]
[332884662,1721627441548,-539.84,0.00013698,2]
[332884664,1721627441557,-500.0,0.00013698,2]
[332884666,1721627441567,-500.0,0.00013698,2]
[332884668,1721627441577,-500.0,0.00013698,2]
[332884670,1721627441587,-500.0,0.00013698,2]
[332884672,1721627441596,-500.0,0.00013698,2]
[332884674,1721627441606,-556.62,0.00013698,2]
[332884676,1721627441616,-507.02998621,0.00013698,2]
[332884677,1721627441626,-518.63,0.00013698,2]
[332884678,1721627441635,-500.0,0.00013698,2]
[332884679,1721627441644,-167.87,0.00013698,2]
[332884680,1721627441655,-500.0,0.00013698,2]
[332884681,1721627441665,-330.35986295,0.00013698,2]
[332884682,1721627441674,-500.0,0.00013698,2]
[332884683,1721627441684,-500.0,0.00013698,2]
[332884684,1721627441694,-500.0,0.00013698,2]
[332884685,1721627441703,-552.12,0.00013698,2]
[332884686,1721627441713,-611.19489112,0.00013698,2]
[332884687,1721627441722,-500.0,0.00013698,2]
[332884688,1721627441732,-500.0,0.00013698,2]
[332884689,1721627441741,-500.0,0.00013698,2]
[332884690,1721627441751,-500.0,0.00013698,2]
[332884691,1721627441761,-511.22,0.00013698,2]
[332884692,1721627441770,-500.0,0.00013698,2]
[332884693,1721627441781,-500.0,0.00013698,2]
[332884694,1721627441792,-500.0,0.00013698,2]
[332884695,1721627441804,-500.0,0.00013698,2]
[332884696,1721627441814,-500.0,0.00013698,2]
[332884697,1721627441825,-500.0,0.00013698,2]
[332884698,1721627441834,-500.0,0.00013698,2]
[332884699,1721627441846,-231.27976673,0.00013698,2]
[332884700,1721627441857,-371.00016222,0.00013698,2]
[332884701,1721627441868,-762.63,0.00013698,2]
[332884702,1721627441879,-500.0,0.00013698,2]
[332884703,1721627441889,-500.0,0.00013698,2]
[332884704,1721627441900,-500.0,0.00013698,2]
[332884705,1721627441912,-500.0,0.00013698,2]
[332884706,1721627441922,-222.53,0.00013698,2]
[332884707,1721627441933,-500.0,0.00013698,2]
[332884708,1721627441943,-543.11,0.00013698,2]
[332884709,1721627441954,-500.0,0.00013698,2]
[332884710,1721627441965,-500.0,0.00013698,2]
[332884711,1721627441975,-500.0,0.00013698,2]
[332884712,1721627441987,-500.0,0.00013698,2]
[332884713,1721627442009,-500.0,0.00013698,2]
[332884714,1721627442026,-152.171668,0.00013698,2]
[332884715,1721627442040,-637.5,0.00013698,2]
[332884716,1721627442055,-632.2865234,0.00013698,2]
[332884717,1721627442071,-500.0,0.00013698,2]
[332884718,1721627442090,-500.0,0.00013698,2]
[332884719,1721627442107,-500.0,0.00013698,2]
[332884720,1721627442119,-500.0,0.00013698,2]
[332884721,1721627442129,-151.0,0.00013698,2]
[332884722,1721627442139,-331.66,0.00013698,2]
[332884723,1721627442149,-518.32252822,0.00013698,2]
[332884724,1721627442159,-267.77,0.00013698,2]
[332884725,1721627442168,-277.01550922,0.00013698,2]
[332884726,1721627442178,-625.08614798,0.00013698,2]
[332884727,1721627442188,-500.0,0.00013698,2]
[332884728,1721627442198,-629.57450782,0.00013698,2]
[332884729,1721627442207,-500.0,0.00013698,2]
[332884730,1721627442217,-501.75708608,0.00013698,2]
[332884731,1721627442228,-492.95986557,0.00013698,2]
[332884732,1721627442237,-383.6,0.00013698,2]
[332884733,1721627442246,-500.0,0.00013698,2]
[332884734,1721627442257,-500.0,0.00013698,2]
[332884735,1721627442267,-485.60133313,0.00013698,2]
[332884736,1721627442277,-151.302496,0.00013698,2]
[332884737,1721627442287,-500.0,0.00013698,2]
[332884738,1721627442299,-500.0,0.00013698,2]
[332884739,1721627442310,-500.0,0.00013698,2]
[332884740,1721627442320,-270.0,0.00013698,2]
[332884741,1721627442330,-270.0,0.00013698,2]
[332884742,1721627442341,-151.0,0.00013698,2]
[332884743,1721627442350,-278.59039261,0.00013698,2]
[332884744,1721627442361,-203.69218069,0.00013698,2]
[332884745,1721627442372,-312.14198999,0.00013698,2]
[332884746,1721627442383,-500.0,0.00013698,2]
[332884747,1721627442395,-311.218898,0.00013698,2]
[332884748,1721627442407,-311.218898,0.00013698,2]
[332884749,1721627442416,-151.0,0.00013698,2]
[332884750,1721627442426,-563.72267921,0.00013698,2]
[332884751,1721627442436,-151.0,0.00013698,2]
[332884752,1721627442446,-172.855179,0.00013698,2]
[332884753,1721627442455,-151.0,0.00013698,2]
[332884754,1721627442464,-248.471098,0.00013698,2]
[332884755,1721627442474,-500.0,0.00013698,2]
[332884756,1721627442484,-151.0,0.00013698,2]
[332884757,1721627442496,-152.1951,0.00013698,2]
[332884758,1721627442506,-151.0,0.00013698,2]
[332884759,1721627442516,-151.0,0.00013698,2]
[332884760,1721627442525,-230.17950414,0.00013698,2]
[332884761,1721627442535,-500.0,0.00013698,2]
[332884762,1721627442546,-524.75291382,0.00013698,2]
[332884763,1721627442556,-500.0,0.00013698,2]
[332884765,1721627442565,-712.09277562,0.00013698,2]
[332884767,1721627442575,-712.09277562,0.00013698,2]
[332884768,1721627442584,-501.25696749,0.00013698,2]
[332884769,1721627442593,-712.09277562,0.00013698,2]
[332884771,1721627442603,-712.09277562,0.00013698,2]
[332884773,1721627442613,-712.09277562,0.00013698,2]
[332884775,1721627442622,-712.09277562,0.00013698,2]
[332884777,1721627442633,-712.09277562,0.00013698,2]
[332884779,1721627442643,-712.09277562,0.00013698,2]
[332884781,1721627442652,-712.09277562,0.00013698,2]
[332884783,1721627442663,-712.09277562,0.00013698,2]
[332884785,1721627442672,-712.09277562,0.00013698,2]
[332884787,1721627442682,-712.09277562,0.00013698,2]
[332884789,1721627442691,-712.09277562,0.00013698,2]
[332884791,1721627442701,-712.09277562,0.00013698,2]
[332884793,1721627442711,-500.0,0.00013698,2]
[332884796,1721627442720,-500.0,0.00013698,2]
[332884799,1721627442730,-500.0,0.00013698,2]
[332884802,1721627442739,-500.0,0.00013698,2]
[332884805,1721627442749,-196.61937662,0.00013698,2]
[332884808,1721627442758,-500.0,0.00013698,2]
[332884810,1721627442768,-500.0,0.00013698,2]
[332884812,1721627442777,-500.0,0.00013698,2]
[332884814,1721627442787,-500.0,0.00013698,2]
[332884816,1721627442796,-712.09277562,0.00013698,2]
[332884819,1721627442805,-500.0,0.00013698,2]
[332884821,1721627442815,-500.0,0.00013698,2]
[332884823,1721627442824,-712.09277562,0.00013698,2]
[332884826,1721627442834,-500.0,0.00013698,2]
[332884829,1721627442843,-439.93920315,0.00013698,2]
[332884832,1721627442852,-500.0,0.00013698,2]
[332884833,1721627442862,-500.0,0.00013698,2]
[332884835,1721627442871,-500.0,0.00013698,2]
[332884837,1721627442881,-500.0,0.00013698,2]
[332884839,1721627442890,-500.0,0.00013698,2]
[332884840,1721627442899,-500.0,0.00013698,2]
[332884842,1721627442910,-500.0,0.00013698,2]
[332884844,1721627442920,-500.0,0.00013698,2]
[332884846,1721627442930,-712.09277562,0.00013698,2]
[332884848,1721627442939,-151.0,0.00013698,2]
[332884850,1721627442948,-151.0,0.00013698,2]
[332884852,1721627442958,-154.720968,0.00013699,2]
[332884854,1721627442968,-151.0,0.00013699,2]
[332884855,1721627442977,-3000.0,0.00013699,2]
[332884856,1721627442986,-151.0,0.00013699,2]
[332884857,1721627442999,-1007.506337,0.00013699,2]
[332884858,1721627443009,-151.0,0.00013699,2]
[332884860,1721627443018,-151.0,0.00013699,2]
[332884861,1721627443027,-5000.0,0.00013752,2]
[332884862,1721627443038,-151.0,0.00013752,2]
[332884864,1721627443049,-311.218898,0.00013752,2]
[332884866,1721627443060,-311.218898,0.00013752,2]
[332884867,1721627443073,-151.0,0.00013752,2]
[332884868,1721627443083,-293.8749366,0.00013781,2]
[332884869,1721627443092,-293.8749366,0.00013781,2]
[332884870,1721627443103,-293.8749366,0.00013781,2]
[332884871,1721627443112,-225.8959071,0.00013781,2]
[332884872,1721627443121,-153.0,0.00013781,2]
[332884873,1721627443131,-153.0,0.00013781,2]
[332884874,1721627443141,-153.0,0.00013781,2]
[332884875,1721627443151,-153.0,0.00013781,2]
[332884876,1721627443163,-5000.0,0.00013807,2]
[332884877,1721627443173,-3010.28073615,0.00013862,2]
[332884878,1721627443182,-306.0,0.000139,2]
[332884879,1721627443192,-11052.13221099,0.0001396,2]
[332884880,1721627443203,-270.0,0.0001396,2]
[332884881,1721627443213,-270.0,0.0001396,2]
[332884882,1721627443222,-500.0,0.00013971,2]
[332884883,1721627443232,-351.17316634,0.00013971,2]
[332884884,1721627443241,-500.0,0.00013971,2]
[332884885,1721627443251,-500.0,0.00013971,2]
[332884886,1721627443260,-423.66,0.00013971,2]
[332884887,1721627443269,-500.0,0.00013971,2]
[332884888,1721627443279,-500.0,0.00013971,2]
[332884889,1721627443288,-1910.64258563,0.00013971,2]
[332884890,1721627443297,-161.25775841,0.00013971,2]
[332884891,1721627443306,-500.0,0.00013971,2]
[332884892,1721627443316,-500.0,0.00013971,2]
[332884893,1721627443325,-500.0,0.00013971,2]
[332884894,1721627443334,-500.0,0.00013971,2]
[332884895,1721627443343,-500.0,0.00013971,2]
[332884896,1721627443353,-500.0,0.00013971,2]
[332884897,1721627443362,-613.50607496,0.00013971,2]
[332884898,1721627443371,-500.0,0.00013971,2]
[332884899,1721627443381,-500.0,0.00013971,2]
[332884900,1721627443390,-500.0,0.00013971,2]
[332884901,1721627443400,-248.33983644,0.00013971,2]
[332884902,1721627443411,-500.0,0.00013971,2]
[332884903,1721627443420,-186.19333093,0.00013971,2]
[332884904,1721627443430,-500.0,0.00013972,2]
[332884905,1721627443440,-500.0,0.00013972,2]
[332884906,1721627443449,-500.0,0.00013972,2]
[332884907,1721627443459,-378.02,0.00013972,2]
[332884908,1721627443468,-500.0,0.00013972,2]
[332884910,1721627443477,-350.61,0.00013972,2]
[332884911,1721627443487,-500.0,0.00013972,2]
[332884912,1721627443496,-500.0,0.00013972,2]
[332884914,1721627443506,-1312.54,0.00013972,2]
[332884916,1721627443516,-500.0,0.00013972,2]
[332884917,1721627443525,-500.0,0.00013972,2]
[332884918,1721627443535,-500.0,0.00013972,2]
[332884919,1721627443544,-870.55,0.00013972,2]
[332884920,1721627443553,-500.0,0.00013972,2]
[332884921,1721627443563,-500.0,0.00013972,2]
[332884922,1721627443572,-500.0,0.00013972,2]
[332884923,1721627443581,-500.0,0.00013972,2]
[332884924,1721627443591,-236.73723315,0.00013972,2]
[332884925,1721627443600,-500.0,0.00013972,2]
[332884926,1721627443610,-500.0,0.00013972,2]
[332884928,1721627443620,-500.0,0.00013972,2]
[332884929,1721627443630,-377.65,0.00013972,2]
[332884931,1721627443640,-325.0620593,0.00013972,2]
[332884933,1721627443650,-500.0,0.00013972,2]
[332884934,1721627443661,-719.93,0.00013972,2]
[332884935,1721627443670,-500.0,0.00013972,2]
[332884936,1721627443680,-500.0,0.00013972,2]
[332884937,1721627443690,-500.0,0.00013972,2]
[332884938,1721627443699,-500.0,0.00013972,2]
[332884939,1721627443709,-500.0,0.00013972,2]
[332884940,1721627443718,-500.0,0.00013972,2]
[332884941,1721627443728,-500.0,0.00013972,2]
[332884942,1721627443738,-500.0,0.00013972,2]
[332884943,1721627443748,-500.0,0.00013972,2]
[332884944,1721627443757,-500.0,0.00013972,2]
[332884945,1721627443767,-500.0,0.00013972,2]
[332884946,1721627443777,-263.56,0.00013972,2]
[332884947,1721627443787,-500.0,0.00013972,2]
[332884948,1721627443797,-500.0,0.00013972,2]
[332884949,1721627443976,-500.0,0.00013972,2]
[332884950,1721627444005,-500.0,0.00013972,2]
[332884951,1721627444016,-500.0,0.00013972,2]
[332884952,1721627444026,-500.0,0.00013972,2]
[332884953,1721627444036,-500.0,0.00013972,2]
[332884954,1721627444046,-330.25005554,0.00013972,2]
[332884955,1721627444055,-500.0,0.00013972,2]
[332884956,1721627444066,-500.0,0.00013972,2]
[332884957,1721627444078,-500.0,0.00013972,2]
[332884958,1721627444089,-500.0,0.00013972,2]
[332884959,1721627444100,-500.0,0.00013972,2]
[332884960,1721627444110,-500.0,0.00013972,2]
[332884961,1721627444121,-500.0,0.00013972,2]
[332884962,1721627444131,-504.85668131,0.00013972,2]
[332884963,1721627444140,-500.0,0.00013972,2]
[332884964,1721627444150,-219.47197617,0.00013972,2]
[332884965,1721627444161,-500.0,0.00013972,2]
[332884966,1721627444170,-500.0,0.00013972,2]
[332884967,1721627444179,-500.0,0.00013972,2]
[332884968,1721627444189,-521.74,0.00013972,2]
[332884969,1721627444199,-154.81459952,0.00013972,2]
[332884970,1721627444208,-630.94293875,0.00013972,2]
[332884971,1721627444217,-500.0,0.00013972,2]
[332884972,1721627444227,-519.18,0.00013972,2]
[332884973,1721627444236,-500.0,0.00013972,2]
[332884974,1721627444245,-286.42240119,0.00013972,2]
[332884975,1721627444254,-500.0,0.00013972,2]
[332884976,1721627444263,-500.0,0.00013972,2]
[332884977,1721627444273,-638.7041191,0.00013972,2]
[332884978,1721627444282,-644.61,0.00013972,2]
[332884979,1721627444291,-500.0,0.00013972,2]
[332884980,1721627444301,-343.9285831,0.00013972,2]
[332884981,1721627444310,-500.0,0.00013972,2]
[332884982,1721627444319,-500.0,0.00013972,2]
[332884983,1721627444328,-323.98651285,0.00013972,2]
[332884984,1721627444338,-500.0,0.00013972,2]
[332884985,1721627444348,-500.0,0.00013972,2]
[332884986,1721627444357,-500.0,0.00013972,2]
[332884987,1721627444366,-500.0,0.00013972,2]
[332884988,1721627444376,-500.0,0.00013972,2]
[332884989,1721627444385,-500.0,0.00013972,2]
[332884990,1721627444394,-500.0,0.00013972,2]
[332884991,1721627444403,-500.08751819,0.00013972,2]
[332884992,1721627444414,-500.0,0.00013972,2]
[332884993,1721627444423,-500.0,0.00013972,2]
[332884994,1721627444432,-322.93905802,0.00013972,2]
[332884995,1721627444441,-500.0,0.00013972,2]
[332884996,1721627444450,-500.0,0.00013972,2]
[332884997,1721627444459,-500.0,0.00013972,2]
[332884998,1721627444468,-500.0,0.00013972,2]
[332884999,1721627444478,-500.0,0.00013972,2]
[332885000,1721627444487,-617.25014449,0.00013972,2]
[332885001,1721627444496,-500.0,0.00013972,2]
[332885002,1721627444506,-247.30750772,0.00013972,2]
[332885003,1721627444515,-504.87220212,0.00013972,2]
[332885004,1721627444525,-500.0,0.00013972,2]
[332885005,1721627444534,-553.82563815,0.00013972,2]
[332885006,1721627444544,-368.02272129,0.00013972,2]
[332885007,1721627444553,-500.0,0.00013972,2]
[332885008,1721627444563,-435.54903973,0.00013972,2]
[332885009,1721627444572,-500.0,0.00013972,2]
[332885010,1721627444582,-420.02974354,0.00013972,2]
[332885011,1721627444591,-500.0,0.00013972,2]
[332885012,1721627444600,-500.0,0.00013972,2]
[332885013,1721627444610,-500.0,0.00013972,2]
[332885014,1721627444619,-253.76,0.00013972,2]
[332885015,1721627444629,-244.32,0.00013972,2]
[332885016,1721627444639,-500.0,0.00013972,2]
[332885017,1721627444648,-500.0,0.00013972,2]
[332885018,1721627444659,-500.0,0.00013972,2]
[332885019,1721627444669,-500.0,0.00013972,2]
[332885020,1721627444678,-500.0,0.00013972,2]
[332885021,1721627444687,-500.0,0.00013972,2]
[332885022,1721627444697,-270.0,0.00013972,2]
[332885023,1721627444706,-270.0,0.00013972,2]
[332885024,1721627444716,-311.218898,0.00013972,2]
[332885025,1721627444726,-311.218898,0.00013972,2]
[332885026,1721627444736,-151.0,0.00013972,2]
[332885027,1721627444746,-151.0,0.00013972,2]
[332885028,1721627444756,-151.0,0.00013972,2]
[332885029,1721627444766,-500.0,0.00013972,2]
[332885030,1721627444776,-186.955037,0.00013972,2]
[332885031,1721627444786,-151.0,0.00013972,2]
[332885032,1721627444795,-150.112233,0.00014,5]
[332885033,1721627444805,-206.6425332,0.00014,2]
[332885034,1721627444815,-206.6425332,0.00014,2]
[332885035,1721627444825,-153.0,0.00014,2]
[332885036,1721627444834,-467.0732872,0.00014,2]
[332885037,1721627444843,-413.2248504,0.00014,2]
[332885038,1721627444854,-150.112233,0.00014,4]
[332885039,1721627444863,-6800.13151862,0.000141,2]
[332885040,1721627445525,-500.0,0.00013698,2]
[332885041,1721627445536,-500.0,0.00013698,2]
[332885042,1721627445547,-560.47166801,0.00013698,2]
[332885043,1721627445558,-500.0,0.00013698,2]
[332885044,1721627445568,-500.0,0.00013698,2]
[332885045,1721627445579,-500.0,0.00013698,2]
[332885046,1721627445588,-287.46662722,0.00013698,2]
[332885087,1721627940964,693.0,0.00025,120]
[332885118,1721628633169,-300.0,9.998e-05,2]
[332885120,1721628633178,-156.93699196,9.999e-05,2]
[332885122,1721628633187,-392.40605053,9.999e-05,2]
[332885124,1721628633197,-600.35072305,9.999e-05,2]
[332885126,1721628633206,-459.13593927,9.999e-05,2]
[332885128,1721628633216,-413.45473308,9.999e-05,2]
[332885130,1721628633225,-188.02900327,9.999e-05,2]
[332885132,1721628633234,-305.20688717,9.999e-05,2]
[332885134,1721628633244,-346.24214689,9.999e-05,2]
[332885136,1721628633253,-286.81775087,9.999e-05,2]
[332885137,1721628633262,-500.72751431,0.0001,2]
[332885138,1721628633272,-352.52037678,0.00010959,2]
[332885151,1721628638563,-132.56962322,0.00010959,2]
[332885152,1721628638572,-2736.4441857,0.00011077,2]
[332885153,1721628638582,-350.0,0.00011079,2]
[332885154,1721628638592,-3763.0819323,0.00011146,2]
[332885155,1721628638602,-168.649666,0.0001132,2]
[332885156,1721628638612,-168.649666,0.00011404,2]
[332885157,1721628638621,-168.649666,0.00011489,2]
[332885159,1721628638631,-168.649666,0.00011573,2]
[332885161,1721628638641,-168.649666,0.00011657,2]
[332885163,1721628638651,-168.649666,0.00011741,2]
[332885165,1721628638660,-168.649666,0.00011826,2]
[332885167,1721628638670,-168.649666,0.0001191,2]
[332885169,1721628638680,-206.6124252,0.00013178,2]
[332885171,1721628638689,-206.6124252,0.00013178,2]
[332885173,1721628638699,-1362.73863572,0.0001359,2]
[332885176,1721628638709,-154.84704436,0.000136,2]
[332885177,1721628638718,-897.2271917,0.00013688,2]
[332885266,1721628646585,-206.6124252,0.00013178,2]
[332885267,1721628646594,-11619.3873048,0.00013688,2]
[332885272,1721629114997,5919.0,0.000225,30]
[332885290,1721629832592,-346.24214689,9.999e-05,2]
[332885291,1721629832601,-389.03177945,9.999e-05,2]
[332885318,1721629838713,-3.37427108,9.999e-05,2]
[332885320,1721629838722,-807.82844326,9.999e-05,2]
[332885322,1721629838731,-188.02900327,9.999e-05,2]
[332885324,1721629838741,-213.49148255,9.999e-05,2]
[332885326,1721629838750,-459.13593927,9.999e-05,2]
[332885328,1721629838759,-500.72751431,0.0001,2]
[332885331,1721629838770,-288.5136921,0.00012693,2]
[332885333,1721629838779,-367.39222983,0.00013169,2]
[332885335,1721629838791,-779.13449963,0.0001336,2]
[332885336,1721629838800,-5304.84073988,0.00013417,2]
[332885338,1721629838810,-370582.14415,0.00013688,2]
[332885340,1721629838819,-506.8,0.0001369,2]
[332885341,1721629838828,-5000.0,0.00013697,2]
[332885343,1721629838837,-500.0,0.00013698,2]
[332885344,1721629838846,-500.0,0.00013698,2]
[332885345,1721629838855,-500.0,0.00013698,2]
[332885346,1721629838864,-500.0,0.00013698,2]
[332885347,1721629838874,-500.0,0.00013698,2]
[332885348,1721629838884,-511.14918565,0.00013698,2]
[332885349,1721629838893,-500.0,0.00013698,2]